[Event "*** SCC Grand Prix: Titled Tuesday Blitz"]
[Site "Chess.com"]
[Date "2020.07.14"]
[Round "10"]
[White "Dr_crypt"]
[Black "jacky72"]
[Result "1/2-1/2"]
[WhiteElo "2403"]
[BlackElo "2621"]
[TimeControl "180+1"]
[EndTime "11:58:03 PDT"]
[Termination "Game drawn - insufficient material"]

1. d4 {[%clk 0:03:00.7]} 1... f5 {[%clk 0:02:59.2]} 2. Nf3 {[%clk 0:03:00.2]}
2... c5 {[%clk 0:02:58.7]} 3. dxc5 {[%clk 0:02:57.4]} 3... Na6 {[%clk 0:02:57]}
4. g3 {[%clk 0:02:39.4]} 4... Nxc5 {[%clk 0:02:56.5]} 5. Bg2 {[%clk 0:02:40.3]}
5... Nf6 {[%clk 0:02:56.4]} 6. O-O {[%clk 0:02:41.2]} 6... e6 {[%clk 0:02:56.8]}
7. b4 {[%clk 0:02:36.9]} 7... Nce4 {[%clk 0:02:55.8]} 8. a3 {[%clk 0:02:36.4]}
8... d5 {[%clk 0:02:55.8]} 9. Bb2 {[%clk 0:02:34.1]} 9... Be7 {[%clk 0:02:54.9]}
10. Nbd2 {[%clk 0:02:31.1]} 10... O-O {[%clk 0:02:54.9]} 11. c4 {[%clk
0:02:31.3]} 11... Kh8 {[%clk 0:02:54.1]} 12. cxd5 {[%clk 0:02:30.7]} 12... exd5
{[%clk 0:02:55]} 13. Rc1 {[%clk 0:02:29.5]} 13... Be6 {[%clk 0:02:54.5]} 14. Nd4
{[%clk 0:02:25.3]} 14... Qd7 {[%clk 0:02:53.3]} 15. N2b3 {[%clk 0:02:20.9]}
15... Rac8 {[%clk 0:02:51.3]} 16. Qd3 {[%clk 0:02:11.8]} 16... Ng4 {[%clk
0:02:47.1]} 17. Nxe6 {[%clk 0:01:52.8]} 17... Qxe6 {[%clk 0:02:44.2]} 18. Rcd1
{[%clk 0:01:52]} 18... Bf6 {[%clk 0:02:31.2]} 19. Bd4 {[%clk 0:01:46]} 19... Ne5
{[%clk 0:02:25.5]} 20. Bxe5 {[%clk 0:01:40.6]} 20... Qxe5 {[%clk 0:02:26.4]} 21.
Qxd5 {[%clk 0:01:24.9]} 21... Qxd5 {[%clk 0:02:26.3]} 22. Rxd5 {[%clk
0:01:24.8]} 22... Nc3 {[%clk 0:02:27.2]} 23. Rd2 {[%clk 0:01:23.3]} 23... b6
{[%clk 0:02:26.9]} 24. e3 {[%clk 0:01:18.8]} 24... Rfd8 {[%clk 0:02:25]} 25. Nd4
{[%clk 0:01:07.9]} 25... Bxd4 {[%clk 0:02:23.9]} 26. exd4 {[%clk 0:01:07.8]}
26... Rxd4 {[%clk 0:02:24.4]} 27. Rxd4 {[%clk 0:01:05.3]} 27... Ne2+ {[%clk
0:02:24.4]} 28. Kh1 {[%clk 0:01:06.2]} 28... Nxd4 {[%clk 0:02:25.3]} 29. Rd1
{[%clk 0:01:06.4]} 29... h6 {[%clk 0:02:24.2]} 30. Rxd4 {[%clk 0:00:52]} 30...
Rc1+ {[%clk 0:02:23.6]} 31. Bf1 {[%clk 0:00:52.5]} 31... Rxf1+ {[%clk 0:02:24]}
32. Kg2 {[%clk 0:00:53.4]} 32... Ra1 {[%clk 0:02:24.9]} 33. Rd3 {[%clk
0:00:52.6]} 33... Kh7 {[%clk 0:02:24]} 34. Kf3 {[%clk 0:00:51.3]} 34... Kg6
{[%clk 0:02:24]} 35. Ke3 {[%clk 0:00:48.9]} 35... Kf6 {[%clk 0:02:22.5]} 36. f4
{[%clk 0:00:48]} 36... g5 {[%clk 0:02:21.6]} 37. Rd6+ {[%clk 0:00:42.3]} 37...
Kg7 {[%clk 0:02:19.9]} 38. Rd3 {[%clk 0:00:39.3]} 38... a5 {[%clk 0:02:17.5]}
39. bxa5 {[%clk 0:00:38.2]} 39... bxa5 {[%clk 0:02:18.4]} 40. Kd4 {[%clk
0:00:36.6]} 40... gxf4 {[%clk 0:02:18.4]} 41. gxf4 {[%clk 0:00:36.8]} 41... Kf6
{[%clk 0:02:19.3]} 42. Rc3 {[%clk 0:00:30.1]} 42... Kg6 {[%clk 0:02:14.5]} 43.
Rc6+ {[%clk 0:00:28.6]} 43... Kh5 {[%clk 0:02:14.5]} 44. Ke5 {[%clk 0:00:28.7]}
44... Rxa3 {[%clk 0:02:11.1]} 45. Kxf5 {[%clk 0:00:29.1]} 45... a4 {[%clk
0:02:09.7]} 46. Ra6 {[%clk 0:00:28.6]} 46... Ra1 {[%clk 0:02:09.8]} 47. Kf6
{[%clk 0:00:28.2]} 47... Kg4 {[%clk 0:02:10.7]} 48. f5 {[%clk 0:00:28.1]} 48...
h5 {[%clk 0:02:10.2]} 49. Kg6 {[%clk 0:00:25.9]} 49... h4 {[%clk 0:02:09.8]} 50.
f6 {[%clk 0:00:26.2]} 50... Kh3 {[%clk 0:02:06.2]} 51. f7 {[%clk 0:00:25.7]}
51... Rg1+ {[%clk 0:02:06.8]} 52. Kh7 {[%clk 0:00:23.7]} 52... Rf1 {[%clk
0:02:07.7]} 53. Kg7 {[%clk 0:00:23.2]} 53... Rxf7+ {[%clk 0:02:05.4]} 54. Kxf7
{[%clk 0:00:23.4]} 54... Kxh2 {[%clk 0:02:06.3]} 55. Kg6 {[%clk 0:00:20.7]}
55... h3 {[%clk 0:02:07.2]} 56. Kg5 {[%clk 0:00:20.5]} 56... Kg1 {[%clk
0:02:07.3]} 57. Rxa4 {[%clk 0:00:20]} 57... h2 {[%clk 0:02:08.2]} 58. Ra1+
{[%clk 0:00:20.1]} 58... Kg2 {[%clk 0:02:08.6]} 59. Ra2+ {[%clk 0:00:20.1]}
59... Kg3 {[%clk 0:02:09.1]} 60. Ra1 {[%clk 0:00:19.8]} 60... Kh3 {[%clk
0:02:06.4]} 61. Kf4 {[%clk 0:00:19.3]} 61... Kg2 {[%clk 0:02:07.3]} 62. Kg4
{[%clk 0:00:18.2]} 62... h1=Q {[%clk 0:02:06]} 63. Rxh1 {[%clk 0:00:16.7]} 63...
Kxh1 {[%clk 0:02:06.9]} 1/2-1/2

[Event "*** SCC Grand Prix: Titled Tuesday Blitz"]
[Site "Chess.com"]
[Date "2020.07.14"]
[Round "10"]
[White "szachuspl"]
[Black "Eternauta2400"]
[Result "1-0"]
[WhiteElo "2534"]
[BlackElo "2631"]
[TimeControl "180+1"]
[EndTime "11:58:05 PDT"]
[Termination "szachuspl won by resignation"]

1. d4 {[%clk 0:03:00.9]} 1... Nf6 {[%clk 0:02:59.7]} 2. c4 {[%clk 0:02:58.2]}
2... e6 {[%clk 0:03:00]} 3. Nf3 {[%clk 0:02:57.7]} 3... d5 {[%clk 0:02:59.8]} 4.
Nc3 {[%clk 0:02:53]} 4... Bb4 {[%clk 0:02:57.8]} 5. Qa4+ {[%clk 0:02:49.5]} 5...
Nc6 {[%clk 0:02:57.2]} 6. e3 {[%clk 0:02:50]} 6... O-O {[%clk 0:02:54]} 7. Qc2
{[%clk 0:02:50.5]} 7... dxc4 {[%clk 0:02:50.1]} 8. Bxc4 {[%clk 0:02:49.9]} 8...
a6 {[%clk 0:02:50.5]} 9. Bd2 {[%clk 0:02:46.3]} 9... Bd6 {[%clk 0:02:50.1]} 10.
e4 {[%clk 0:02:43.1]} 10... e5 {[%clk 0:02:49.8]} 11. d5 {[%clk 0:02:42.1]}
11... Ne7 {[%clk 0:02:49.7]} 12. O-O {[%clk 0:02:41.4]} 12... c6 {[%clk
0:02:49.7]} 13. dxc6 {[%clk 0:02:35.3]} 13... bxc6 {[%clk 0:02:50.6]} 14. Bg5
{[%clk 0:02:32.2]} 14... Ng6 {[%clk 0:02:50.5]} 15. Rad1 {[%clk 0:02:30.8]}
15... h6 {[%clk 0:02:49.8]} 16. Be3 {[%clk 0:02:29.4]} 16... Qe7 {[%clk
0:02:46.1]} 17. Na4 {[%clk 0:02:19.6]} 17... Bg4 {[%clk 0:02:45.4]} 18. Be2
{[%clk 0:02:13.7]} 18... Rac8 {[%clk 0:02:40]} 19. h3 {[%clk 0:02:13.4]} 19...
Be6 {[%clk 0:02:32.7]} 20. Bxa6 {[%clk 0:02:03.3]} 20... Rc7 {[%clk 0:02:28.8]}
21. Bc4 {[%clk 0:02:03.1]} 21... Nh5 {[%clk 0:02:21.6]} 22. Rxd6 {[%clk
0:01:59.2]} 22... Qxd6 {[%clk 0:02:18.9]} 23. Bc5 {[%clk 0:01:59.4]} 23... Qd7
{[%clk 0:02:18.7]} 24. Rd1 {[%clk 0:01:56.7]} 24... Qc8 {[%clk 0:02:18]} 25.
Bxf8 {[%clk 0:01:56]} 25... Nxf8 {[%clk 0:02:04.5]} 26. Nc5 {[%clk 0:01:54.9]}
26... Bxh3 {[%clk 0:02:01.8]} 27. gxh3 {[%clk 0:01:40.9]} 27... Qxh3 {[%clk
0:02:02.7]} 28. Nh2 {[%clk 0:01:40.5]} 28... Ng6 {[%clk 0:01:51.3]} 29. Bf1
{[%clk 0:01:39.6]} 29... Qh4 {[%clk 0:01:50.3]} 30. Qd3 {[%clk 0:01:29.3]} 30...
Kh7 {[%clk 0:01:43.4]} 31. Qd8 {[%clk 0:01:25.3]} 31... Re7 {[%clk 0:01:25.4]}
32. Qc8 {[%clk 0:01:17.3]} 32... Nhf4 {[%clk 0:01:17.2]} 33. Qg4 {[%clk
0:01:16.5]} 33... Qf6 {[%clk 0:01:17.5]} 34. Nd7 {[%clk 0:01:12.8]} 34... Qh4
{[%clk 0:01:03.8]} 35. Qxh4 {[%clk 0:01:09.7]} 35... Nxh4 {[%clk 0:01:04.7]} 36.
Nc5 {[%clk 0:01:09]} 36... f6 {[%clk 0:00:54.2]} 37. a4 {[%clk 0:01:08.8]} 37...
Re8 {[%clk 0:00:43.7]} 38. a5 {[%clk 0:01:07.8]} 38... g5 {[%clk 0:00:42]} 39.
a6 {[%clk 0:01:07.7]} 39... g4 {[%clk 0:00:42.5]} 40. a7 {[%clk 0:01:07.5]}
40... Ra8 {[%clk 0:00:40.6]} 41. Rd7+ {[%clk 0:01:07]} 41... Kg6 {[%clk
0:00:41.5]} 42. Na4 {[%clk 0:00:56.7]} 42... Ne6 {[%clk 0:00:29.8]} 43. Nb6
{[%clk 0:00:53.7]} 43... Nc5 {[%clk 0:00:30.1]} 44. Rc7 {[%clk 0:00:45.1]} 44...
Ne6 {[%clk 0:00:26.8]} 45. Nxa8 {[%clk 0:00:44.8]} 1-0

[Event "*** SCC Grand Prix: Titled Tuesday Blitz"]
[Site "Chess.com"]
[Date "2020.07.14"]
[Round "10"]
[White "Witik"]
[Black "Supernotar"]
[Result "0-1"]
[WhiteElo "2675"]
[BlackElo "2837"]
[TimeControl "180+1"]
[EndTime "11:58:06 PDT"]
[Termination "Supernotar won by checkmate"]

1. d4 {[%clk 0:03:00.9]} 1... d5 {[%clk 0:02:59.8]} 2. Bf4 {[%clk 0:02:59.7]}
2... Nf6 {[%clk 0:02:59.5]} 3. e3 {[%clk 0:02:59.9]} 3... e6 {[%clk 0:02:59.7]}
4. Nd2 {[%clk 0:02:59.3]} 4... Bd6 {[%clk 0:02:59.4]} 5. c3 {[%clk 0:02:59.4]}
5... c5 {[%clk 0:02:59.2]} 6. Bxd6 {[%clk 0:02:58.3]} 6... Qxd6 {[%clk
0:02:59.3]} 7. Bd3 {[%clk 0:02:58.7]} 7... Nbd7 {[%clk 0:02:57.8]} 8. f4 {[%clk
0:02:58.4]} 8... O-O {[%clk 0:02:49.6]} 9. Ngf3 {[%clk 0:02:58.2]} 9... b6
{[%clk 0:02:43.5]} 10. Ne5 {[%clk 0:02:57.9]} 10... Bb7 {[%clk 0:02:41.5]} 11.
Qf3 {[%clk 0:02:56.8]} 11... a5 {[%clk 0:02:19.5]} 12. O-O {[%clk 0:02:46.3]}
12... Ba6 {[%clk 0:02:10.5]} 13. Bxa6 {[%clk 0:02:46.1]} 13... Rxa6 {[%clk
0:02:11.4]} 14. Qg3 {[%clk 0:02:32.1]} 14... b5 {[%clk 0:02:07.3]} 15. f5 {[%clk
0:02:31.3]} 15... b4 {[%clk 0:02:03.1]} 16. Rf3 {[%clk 0:02:12.6]} 16... cxd4
{[%clk 0:01:54.9]} 17. cxd4 {[%clk 0:02:10.2]} 17... Rc8 {[%clk 0:01:51.7]} 18.
Raf1 {[%clk 0:02:08]} 18... Rc2 {[%clk 0:01:39.9]} 19. fxe6 {[%clk 0:02:07.9]}
19... Qxe6 {[%clk 0:01:38.3]} 20. Nxd7 {[%clk 0:01:49.8]} 20... Nxd7 {[%clk
0:01:35]} 21. Nb3 {[%clk 0:01:18.6]} 21... Qe8 {[%clk 0:01:16.3]} 22. Rxf7
{[%clk 0:01:08.1]} 22... Rg6 {[%clk 0:01:10.3]} 23. Qf3 {[%clk 0:00:47.6]} 23...
Qxe3+ {[%clk 0:01:00.9]} 24. Kh1 {[%clk 0:00:41.1]} 24... Qxf3 {[%clk
0:01:00.3]} 25. R7xf3 {[%clk 0:00:39.6]} 25... a4 {[%clk 0:00:53.8]} 26. Nc5
{[%clk 0:00:39.4]} 26... Rgxg2 {[%clk 0:00:41.1]} 27. Re1 {[%clk 0:00:19.9]}
27... Nf6 {[%clk 0:00:37.7]} 28. Nxa4 {[%clk 0:00:17.7]} 28... Rxh2+ {[%clk
0:00:33.3]} 29. Kg1 {[%clk 0:00:17.9]} 29... Rcg2+ {[%clk 0:00:31.9]} 30. Kf1
{[%clk 0:00:18.1]} 30... Ne4 {[%clk 0:00:25.8]} 31. Nc5 {[%clk 0:00:15.2]} 31...
Nd2# {[%clk 0:00:24.1]} 0-1

[Event "*** SCC Grand Prix: Titled Tuesday Blitz"]
[Site "Chess.com"]
[Date "2020.07.14"]
[Round "10"]
[White "GadimbayliA"]
[Black "WashUntilHoles"]
[Result "0-1"]
[WhiteElo "2866"]
[BlackElo "2723"]
[TimeControl "180+1"]
[EndTime "11:58:09 PDT"]
[Termination "WashUntilHoles won by resignation"]

1. e4 {[%clk 0:02:50.9]} 1... c6 {[%clk 0:03:00.2]} 2. Nf3 {[%clk 0:02:49.6]}
2... d5 {[%clk 0:03:00.7]} 3. exd5 {[%clk 0:02:50.4]} 3... cxd5 {[%clk
0:03:00.1]} 4. d4 {[%clk 0:02:51.3]} 4... Nc6 {[%clk 0:02:57.9]} 5. c3 {[%clk
0:02:51.7]} 5... Nf6 {[%clk 0:02:55.9]} 6. Ne5 {[%clk 0:02:51.9]} 6... g6 {[%clk
0:02:49.9]} 7. Bb5 {[%clk 0:02:51.1]} 7... Bd7 {[%clk 0:02:49.3]} 8. Nxd7 {[%clk
0:02:51.7]} 8... Qxd7 {[%clk 0:02:48.7]} 9. O-O {[%clk 0:02:52.6]} 9... Bg7
{[%clk 0:02:48.7]} 10. Nd2 {[%clk 0:02:53.2]} 10... O-O {[%clk 0:02:49.2]} 11.
Re1 {[%clk 0:02:53.8]} 11... e6 {[%clk 0:02:46.8]} 12. Nf3 {[%clk 0:02:53.3]}
12... Ne4 {[%clk 0:02:46.6]} 13. Bf4 {[%clk 0:02:52.9]} 13... a6 {[%clk
0:02:44.4]} 14. Bd3 {[%clk 0:02:53.1]} 14... f5 {[%clk 0:02:43.4]} 15. a4 {[%clk
0:02:52.7]} 15... h6 {[%clk 0:02:38.4]} 16. Ne5 {[%clk 0:02:33.2]} 16... Nxe5
{[%clk 0:02:37]} 17. Bxe5 {[%clk 0:02:34.1]} 17... Bxe5 {[%clk 0:02:31.7]} 18.
dxe5 {[%clk 0:02:35]} 18... Rad8 {[%clk 0:02:15.1]} 19. Qe2 {[%clk 0:02:34.9]}
19... Qc7 {[%clk 0:02:12.1]} 20. h4 {[%clk 0:02:32]} 20... Kg7 {[%clk
0:02:09.6]} 21. Rac1 {[%clk 0:02:26.1]} 21... Nc5 {[%clk 0:02:04.7]} 22. Bc2
{[%clk 0:02:25.7]} 22... Qb6 {[%clk 0:01:57.5]} 23. b4 {[%clk 0:02:21]} 23...
Ne4 {[%clk 0:01:52.3]} 24. Bxe4 {[%clk 0:02:05.1]} 24... fxe4 {[%clk 0:01:52]}
25. c4 {[%clk 0:02:01.5]} 25... Qxb4 {[%clk 0:01:32.4]} 26. cxd5 {[%clk
0:01:50.8]} 26... exd5 {[%clk 0:01:32.6]} 27. Rc7+ {[%clk 0:01:29.1]} 27... Rf7
{[%clk 0:01:32.5]} 28. Rec1 {[%clk 0:01:29.7]} 28... Rdd7 {[%clk 0:01:22]} 29.
Rc8 {[%clk 0:01:10.8]} 29... Qe7 {[%clk 0:01:04.9]} 30. Rb8 {[%clk 0:00:28.2]}
30... Rc7 {[%clk 0:01:03.9]} 31. Rb1 {[%clk 0:00:15.4]} 31... Qxe5 {[%clk
0:01:03.6]} 32. Qg4 {[%clk 0:00:16.1]} 32... Qf5 {[%clk 0:01:00.5]} 33. Qg3
{[%clk 0:00:16]} 33... e3 {[%clk 0:00:59.6]} 34. Rf1 {[%clk 0:00:14.6]} 34...
exf2+ {[%clk 0:00:58.8]} 35. Kh1 {[%clk 0:00:14.5]} 35... Qf4 {[%clk 0:00:50.7]}
36. Qh3 {[%clk 0:00:14.9]} 36... Rc1 {[%clk 0:00:48.8]} 0-1

[Event "*** SCC Grand Prix: Titled Tuesday Blitz"]
[Site "Chess.com"]
[Date "2020.07.14"]
[Round "10"]
[White "Artyom_ChessMate"]
[Black "UKR_Master"]
[Result "1-0"]
[WhiteElo "2498"]
[BlackElo "2324"]
[TimeControl "180+1"]
[EndTime "11:58:13 PDT"]
[Termination "Artyom_ChessMate won by checkmate"]

1. e4 {[%clk 0:03:00.9]} 1... c5 {[%clk 0:03:00.3]} 2. Nc3 {[%clk 0:03:01]} 2...
Nc6 {[%clk 0:03:00.2]} 3. Bb5 {[%clk 0:03:00.4]} 3... Nd4 {[%clk 0:02:59.8]} 4.
Nf3 {[%clk 0:03:00.4]} 4... g6 {[%clk 0:02:59.1]} 5. O-O {[%clk 0:03:00]} 5...
Bg7 {[%clk 0:02:59]} 6. Nxd4 {[%clk 0:03:00.5]} 6... cxd4 {[%clk 0:02:58.4]} 7.
Ne2 {[%clk 0:03:01.4]} 7... a6 {[%clk 0:02:58]} 8. Ba4 {[%clk 0:03:01.1]} 8...
e6 {[%clk 0:02:58.3]} 9. d3 {[%clk 0:03:00.6]} 9... Ne7 {[%clk 0:02:58.3]} 10.
Bb3 {[%clk 0:03:01.1]} 10... O-O {[%clk 0:02:56]} 11. f4 {[%clk 0:03:01.7]}
11... d6 {[%clk 0:02:53.3]} 12. Qe1 {[%clk 0:03:02]} 12... b5 {[%clk 0:02:51.2]}
13. Bd2 {[%clk 0:03:02.4]} 13... Qb6 {[%clk 0:02:50.6]} 14. Ba5 {[%clk
0:03:02.4]} 14... Qc5 {[%clk 0:02:48.5]} 15. Bb4 {[%clk 0:03:00.6]} 15... Qb6
{[%clk 0:02:48.5]} 16. Ba5 {[%clk 0:02:54.1]} 16... Qc5 {[%clk 0:02:48.1]} 17.
a3 {[%clk 0:02:50.8]} 17... Nc6 {[%clk 0:02:46.8]} 18. Bd2 {[%clk 0:02:50.5]}
18... a5 {[%clk 0:02:44.6]} 19. Rc1 {[%clk 0:02:42]} 19... Kh8 {[%clk
0:02:33.9]} 20. Qh4 {[%clk 0:02:38.3]} 20... f5 {[%clk 0:02:27.2]} 21. Ng3
{[%clk 0:02:19.9]} 21... Bf6 {[%clk 0:02:22]} 22. Qh3 {[%clk 0:02:19.2]} 22...
a4 {[%clk 0:02:03.4]} 23. Ba2 {[%clk 0:02:18.5]} 23... Bd7 {[%clk 0:01:48.9]}
24. Rfe1 {[%clk 0:02:15.9]} 24... Rac8 {[%clk 0:01:46.9]} 25. exf5 {[%clk
0:02:07.4]} 25... exf5 {[%clk 0:01:42.4]} 26. Nf1 {[%clk 0:02:00.2]} 26... Rce8
{[%clk 0:01:40.9]} 27. Qg3 {[%clk 0:01:57.8]} 27... Qb6 {[%clk 0:01:33.2]} 28.
Rxe8 {[%clk 0:01:48.5]} 28... Rxe8 {[%clk 0:01:33.1]} 29. Re1 {[%clk 0:01:49.4]}
29... Qd8 {[%clk 0:01:28.9]} 30. h3 {[%clk 0:01:36.3]} 30... Rf8 {[%clk
0:01:14.2]} 31. Qf3 {[%clk 0:01:33.1]} 31... Re8 {[%clk 0:01:11.3]} 32. Qd5
{[%clk 0:01:29.2]} 32... Rxe1 {[%clk 0:01:03.7]} 33. Bxe1 {[%clk 0:01:30.1]}
33... Qf8 {[%clk 0:00:52.2]} 34. Bf2 {[%clk 0:01:09]} 34... b4 {[%clk
0:00:43.1]} 35. Nd2 {[%clk 0:01:00.7]} 35... bxa3 {[%clk 0:00:34.8]} 36. bxa3
{[%clk 0:01:01.6]} 36... Kg7 {[%clk 0:00:24.2]} 37. Nc4 {[%clk 0:00:51.2]} 37...
Qe7 {[%clk 0:00:18.2]} 38. Nxd6 {[%clk 0:00:46]} 38... Qe2 {[%clk 0:00:11]} 39.
Qg8+ {[%clk 0:00:45.9]} 39... Kh6 {[%clk 0:00:10.8]} 40. Nf7+ {[%clk 0:00:46.8]}
40... Kh5 {[%clk 0:00:08.7]} 41. Qxh7# {[%clk 0:00:47.7]} 1-0

[Event "*** SCC Grand Prix: Titled Tuesday Blitz"]
[Site "Chess.com"]
[Date "2020.07.14"]
[Round "10"]
[White "onnoelgersma"]
[Black "volcanoexplorer"]
[Result "0-1"]
[WhiteElo "2438"]
[BlackElo "2576"]
[TimeControl "180+1"]
[EndTime "11:58:15 PDT"]
[Termination "volcanoexplorer won by checkmate"]

1. e4 {[%clk 0:03:00.9]} 1... e5 {[%clk 0:02:59.1]} 2. Nf3 {[%clk 0:03:01]} 2...
Nc6 {[%clk 0:02:59.4]} 3. Bb5 {[%clk 0:03:01.6]} 3... a6 {[%clk 0:02:59.2]} 4.
Ba4 {[%clk 0:03:00.9]} 4... Nf6 {[%clk 0:02:59.3]} 5. O-O {[%clk 0:03:00.9]}
5... Be7 {[%clk 0:02:59.9]} 6. d3 {[%clk 0:03:00.1]} 6... d6 {[%clk 0:02:57.5]}
7. a3 {[%clk 0:02:55.4]} 7... b5 {[%clk 0:02:56.4]} 8. Bb3 {[%clk 0:02:55.3]}
8... Bb7 {[%clk 0:02:56.7]} 9. Nc3 {[%clk 0:02:55.4]} 9... O-O {[%clk
0:02:56.7]} 10. Nd5 {[%clk 0:02:55.4]} 10... Na5 {[%clk 0:02:54.5]} 11. Nxf6+
{[%clk 0:02:54]} 11... Bxf6 {[%clk 0:02:54.4]} 12. Ba2 {[%clk 0:02:54.7]} 12...
d5 {[%clk 0:02:51.1]} 13. Qe2 {[%clk 0:02:38.9]} 13... c5 {[%clk 0:02:45.6]} 14.
b4 {[%clk 0:02:19.7]} 14... dxe4 {[%clk 0:02:26.5]} 15. dxe4 {[%clk 0:02:08.4]}
15... cxb4 {[%clk 0:02:26.9]} 16. axb4 {[%clk 0:02:09.1]} 16... Nc6 {[%clk
0:02:27.3]} 17. c3 {[%clk 0:02:07.2]} 17... Qc7 {[%clk 0:02:19.6]} 18. Be3
{[%clk 0:02:06.3]} 18... Nd8 {[%clk 0:02:11.9]} 19. Bc5 {[%clk 0:01:57]} 19...
Re8 {[%clk 0:02:11.8]} 20. Rfd1 {[%clk 0:01:47.9]} 20... Ne6 {[%clk 0:02:11.7]}
21. Bd6 {[%clk 0:01:47.8]} 21... Qxc3 {[%clk 0:01:45.5]} 22. Rac1 {[%clk
0:01:46.8]} 22... Nf4 {[%clk 0:01:37]} 23. Qf1 {[%clk 0:01:17.9]} 23... Qa3
{[%clk 0:01:37]} 24. Bxf7+ {[%clk 0:01:16.8]} 24... Kxf7 {[%clk 0:01:32.8]} 25.
Rc7+ {[%clk 0:01:15.9]} 25... Kg8 {[%clk 0:01:30.2]} 26. Rxb7 {[%clk 0:01:16]}
26... Rac8 {[%clk 0:01:14.3]} 27. Bc5 {[%clk 0:01:06]} 27... Red8 {[%clk
0:01:05.4]} 28. Rbd7 {[%clk 0:01:00.6]} 28... Rxd7 {[%clk 0:00:59.8]} 29. Rxd7
{[%clk 0:01:01.5]} 29... a5 {[%clk 0:00:58.2]} 30. Be7 {[%clk 0:00:30.1]} 30...
Bxe7 {[%clk 0:00:37.7]} 31. Rxe7 {[%clk 0:00:29.5]} 31... Rc1 {[%clk 0:00:37.1]}
32. Ne1 {[%clk 0:00:25.4]} 32... Qxb4 {[%clk 0:00:37.1]} 33. Re8+ {[%clk
0:00:12.5]} 33... Kf7 {[%clk 0:00:37]} 34. Rxe5 {[%clk 0:00:10]} 34... Ne2+
{[%clk 0:00:30.7]} 35. Qxe2 {[%clk 0:00:06.7]} 35... Qxe1+ {[%clk 0:00:30.7]}
36. Qf1 {[%clk 0:00:07.4]} 36... Qxf1# {[%clk 0:00:31]} 0-1

[Event "*** SCC Grand Prix: Titled Tuesday Blitz"]
[Site "Chess.com"]
[Date "2020.07.14"]
[Round "10"]
[White "mortngabriel"]
[Black "vanImpe"]
[Result "0-1"]
[WhiteElo "2383"]
[BlackElo "2512"]
[TimeControl "180+1"]
[EndTime "11:58:19 PDT"]
[Termination "vanImpe won by resignation"]

1. e4 {[%clk 0:03:00.9]} 1... c5 {[%clk 0:02:59.2]} 2. Nc3 {[%clk 0:03:00.7]}
2... g6 {[%clk 0:02:59.3]} 3. d4 {[%clk 0:03:00.5]} 3... Bg7 {[%clk 0:02:57.3]}
4. dxc5 {[%clk 0:03:00.6]} 4... Bxc3+ {[%clk 0:02:56.6]} 5. bxc3 {[%clk
0:03:01.2]} 5... Qa5 {[%clk 0:02:56.9]} 6. Qd4 {[%clk 0:02:49.1]} 6... Nf6
{[%clk 0:02:56.7]} 7. Be3 {[%clk 0:02:36.7]} 7... Nc6 {[%clk 0:02:55.3]} 8. Qc4
{[%clk 0:02:21]} 8... Nxe4 {[%clk 0:02:54.5]} 9. Ne2 {[%clk 0:02:07.6]} 9... Nf6
{[%clk 0:02:45.1]} 10. Bh6 {[%clk 0:02:04.4]} 10... b6 {[%clk 0:02:38.1]} 11.
cxb6 {[%clk 0:02:02.7]} 11... axb6 {[%clk 0:02:31.9]} 12. Bg7 {[%clk 0:01:56.8]}
12... Ba6 {[%clk 0:02:26.9]} 13. Qb3 {[%clk 0:01:56]} 13... Rg8 {[%clk 0:02:19]}
14. Bxf6 {[%clk 0:01:55.1]} 14... exf6 {[%clk 0:02:19.5]} 15. Rd1 {[%clk
0:01:18.1]} 15... Ne5 {[%clk 0:02:00.1]} 16. Rd5 {[%clk 0:01:09]} 16... b5
{[%clk 0:01:36.3]} 17. Nd4 {[%clk 0:01:05.9]} 17... Kf8 {[%clk 0:01:24.5]} 18.
Qb4+ {[%clk 0:00:34.2]} 18... Qxb4 {[%clk 0:01:23.7]} 19. cxb4 {[%clk
0:00:35.1]} 19... Kg7 {[%clk 0:01:20.7]} 20. f4 {[%clk 0:00:17]} 20... Nc6
{[%clk 0:01:14.1]} 21. Nxc6 {[%clk 0:00:11.9]} 21... dxc6 {[%clk 0:01:13.7]} 22.
Rd6 {[%clk 0:00:09.7]} 22... Rge8+ {[%clk 0:01:13.1]} 23. Kd2 {[%clk 0:00:09.5]}
23... Re4 {[%clk 0:01:12.8]} 24. Bd3 {[%clk 0:00:07.3]} 24... Rxb4 {[%clk
0:01:08.6]} 25. g3 {[%clk 0:00:06.6]} 25... c5 {[%clk 0:01:04.1]} 26. Re1 {[%clk
0:00:04.4]} 26... Ra7 {[%clk 0:00:54]} 27. Kc3 {[%clk 0:00:01.3]} 27... Ra4
{[%clk 0:00:51.6]} 28. Bf1 {[%clk 0:00:01.1]} 28... b4+ {[%clk 0:00:47.8]} 29.
Kd2 {[%clk 0:00:02]} 29... Bxf1 {[%clk 0:00:45.7]} 30. Rxf1 {[%clk 0:00:02.9]}
30... Rxa2 {[%clk 0:00:45.6]} 31. Kd3 {[%clk 0:00:03]} 31... R7a3+ {[%clk
0:00:43]} 32. Kc4 {[%clk 0:00:03]} 32... Rxc2+ {[%clk 0:00:42.8]} 33. Kb5 {[%clk
0:00:03.9]} 33... b3 {[%clk 0:00:35.2]} 34. Rc6 {[%clk 0:00:04.8]} 34... b2
{[%clk 0:00:33.6]} 35. Rxc5 {[%clk 0:00:04.7]} 35... Rxc5+ {[%clk 0:00:32.8]}
36. Kxc5 {[%clk 0:00:05.6]} 36... Ra1 {[%clk 0:00:33.1]} 0-1